Cogmind - Beta 13 @@@ ROGUE MODE // 2024.04.01 @ 17:57:12 Player: KodiCraft Result: Destroyed by as-34774 with Assembled Blade Performance ------------- Evolutions (1) 500 Regions Visited (4) 800 Robots Destroyed (10) 50 Value Destroyed (423) 423 Prototype IDs (0) 0 Alien Tech Used (0) 0 Bonus (21) 21 TOTAL SCORE: 1794 Bonus ------- Follower Combat Kills 21 Cogmind --------- Core Integrity 0/400 Matter 267/300 Energy 30/100 System Corruption 3% Temperature Cool (0) Movement Rolling (80) Location -9/Mines Parts ------- > --- POWER (2) -------- (None) > --- PROPULSION (3) --- Wheel Wheel > --- UTILITY (2) ------ Small Storage Unit > --- WEAPON (2) ------- (None) > --- INVENTORY (8) ---- Light Ion Engine Signal Interpreter Targeting Computer Peak State ------------ > --- POWER ------------ Improved Ion Engine Improved Ion Engine > --- PROPULSION ------- Wheel Wheel Wheel > --- UTILITY ---------- Small Storage Unit Light Armor Plating > --- WEAPON ----------- Assault Rifle Heavy Assault Rifle > --- INVENTORY -------- Ion Engine Light Ion Engine Light Ion Engine Wheel Wheel Signal Interpreter Particle Cannon Rocket Launcher [Rating: 13] Favorites ----------- Power Ion Engine Engine Ion Engine Propulsion Wheel Wheel Wheel Utility Small Storage Unit Storage Small Storage Unit Protection Light Armor Plating Weapon Assault Rifle Energy Gun EM Pulse Gun Energy Cannon Particle Cannon Ballistic Gun Assault Rifle Launcher Rocket Launcher Special Weapon Mining Laser Build | -11 -10 -10 -9 -9 ------- Run | Yrd Mat Min Mat Min Slots Evolved 2 | . . . 2 . Power 1 | . . . 1 . Propulsion 1 | . . . 1 . Utility . | . . . . . Weapon . | . . . . . Parts Attached 30 | 6 6 . 10 8 Power 6 | 1 1 . 3 1 Engine 6 | 1 1 . 3 1 Core . | . . . . . Reactor . | . . . . . Propulsion 10 | 2 2 . 4 2 Treads . | . . . . . Leg . | . . . . . Wheel 10 | 2 2 . 4 2 Hover . | . . . . . Flight . | . . . . . Utility 2 | 1 . . 1 . Device . | . . . . . Storage 1 | 1 . . . . Processor . | . . . . . Hackware . | . . . . . Protection 1 | . . . 1 . Artifact . | . . . . . Weapon 12 | 2 3 . 2 5 Energy Gun 3 | 2 1 . . . Energy Cannon 1 | . . . . 1 Ballistic Gun 5 | . 1 . 2 2 Ballistic Cannon . | . . . . . Launcher 1 | . . . . 1 Special Weapon 2 | . 1 . . 1 Impact Weapon . | . . . . . Slashing Weapon . | . . . . . Piercing Weapon . | . . . . . Special Melee Weapon . | . . . . . Unidentified Prototypes . | . . . . . Parts Lost 18 | . 5 1 . 12 Power 4 | . 1 . . 3 Propulsion 5 | . 2 . . 3 Utility 1 | . . . . 1 Weapon 8 | . 2 1 . 5 Highest Loss Streak 11 | . 3 1 . 11 To Critical Strikes . | . . . . . Average Slot Usage (%) 80 | . 77 82 85 81 Engine 15 | . 12 14 18 19 Wheel 27 | . 25 28 33 25 Storage 12 | . 14 14 11 11 Protection 1 | . . . 1 7 Energy Gun 7 | . 16 . . . Ballistic Gun 12 | . 6 14 21 13 Special Weapon 1 | . 1 11 . 1 Naked Turns . | . . . . . Heaviest Build 28 | 14 14 13 27 28 Greatest Support 30 | 26 26 20 30 30 Greatest Overweight (x) 6 | . 1 . . 6 Average Overweight (x) . | . . . . . Largest Inventory Capacity 8 | 8 8 8 8 8 Average Capacity 7 | 7 8 8 8 8 Most Carried 8 | 6 8 4 8 8 Average Carried 6 | 3 6 4 5 7 Final Capacity 8 | 8 8 8 8 8 Final Carried 7 | 6 4 4 7 3 Class Distribution -------------------- 83% | Mutant 16% | Scavenger-Mutant Dominant Class ---------------- Mutant | -10/Materials Mutant | -10/Mines Mutant | -9/Materials Scavenger-Mutant | -9/Mines Resources | -11 -10 -10 -9 -9 ----------- Run | Yrd Mat Min Mat Min Matter Collected 574 | 201 149 56 158 10 Remotely . | . . . . . Salvage Created 463 | . 295 56 112 . Parts 28 | . 18 2 8 . Haulers Intercepted . | . . . . . Recyclers Shooed . | . . . . . Parts Field Recycled . | . . . . . Retrieved Matter . | . . . . . Parts Self-Destructed . | . . . . . Prevented . | . . . . . Kills | -11 -10 -10 -9 -9 ------- Run | Yrd Mat Min Mat Min Combat Hostiles Destroyed 11 | . 6 1 2 2 Guns 9 | . 6 1 2 . Cannons 2 | . . . . 2 Classes Destroyed 4 | . 2 . 1 1 Watcher 1 | . 1 . . . Grunt 7 | . 6 1 . . Sentry 2 | . . . 2 . Assembled 2 | . . . . 2 Best Kill Streak 2 | . 2 1 1 2 Combat Bots Only 2 | . 1 1 1 2 Max Kills in Single Turn 1 | . 1 1 1 1 Gunslinging . | . . . . . Exploded . | . . . . . Melee . | . . . . . Uniques/NPCs Destroyed . | . . . . . Combat | -11 -10 -10 -9 -9 -------- Run | Yrd Mat Min Mat Min Hostile Shots Fired 139 | . 47 14 17 61 Missed 41 | . 14 5 5 17 Damage Taken 1879 | . 395 115 170 1199 Core 557 | . 118 34 71 334 Absorbed by Shields . | . . . . . Core Remaining (%) 69 | 100 . 39 . . Volleys Fired 70 | . 40 15 9 6 Largest 2 | . 2 1 2 2 Hottest 123 | . 80 20 43 123 Shots Fired 108 | . 66 15 18 9 Gun 101 | . 66 15 18 2 Cannon 2 | . . . . 2 Launcher 1 | . . . . 1 Special 4 | . . . . 4 Kinetic 60 | . 25 15 18 2 Thermal 6 | . . . . 6 Explosive 1 | . . . . 1 Electromagnetic 41 | . 41 . . . Robot Hit Streak 6 | . 6 6 5 3 Robot Miss Streak 5 | . 3 4 5 1 Penetration Max . | . . . . . Secondary Targets . | . . . . . Shots Hit Robots 66 | . 42 8 11 5 Core Hits 24 | . 13 3 5 3 Critical Kills . | . . . . . Critical Parts Destroyed 1 | . . . 1 . Critical Strikes 1 | . . . 1 . Destroy 1 | . . . 1 . Melee Attacks . | . . . . . Impact . | . . . . . Slashing . | . . . . . Piercing . | . . . . . Sneak Attacks . | . . . . . Combat Hostiles . | . . . . . Follow-up Attacks . | . . . . . Damage Inflicted 1027 | . 610 102 147 168 Guns 840 | . 566 102 147 25 Cannons 41 | . . . . 41 Explosions 44 | . 44 . . . Melee . | . . . . . Ramming 6 | . . . . 6 Kinetic 484 | . 210 102 147 25 Thermal 181 | . 44 . . 137 Explosive . | . . . . . Electromagnetic 356 | . 356 . . . Impact . | . . . . . Slashing . | . . . . . Piercing . | . . . . . Highest Corruption 3 | . . . . 3 Average Corruption 2 | . . . . 2 Corruption Purged . | . . . . . Corruption Blocked . | . . . . . Overload Shots . | . . . . . Overflow Damage 15 | . . . . 15 Projectiles 15 | . . . . 15 Explosions . | . . . . . Melee . | . . . . . Knockbacks . | . . . . . Impact . | . . . . . Kinetic . | . . . . . Secondary . | . . . . . Self-Inflicted Damage 3 | . . . . 3 Shots . | . . . . . Rammed 1 | . . . . 1 Targets Rammed 1 | . . . . 1 Kicked . | . . . . . Crushed . | . . . . . Highest Temperature 192 | . 192 5 24 95 Average Temperature 56 | . 67 5 14 33 Received Heat Transfer 345 | . 216 66 63 . Siege Activations . | . . . . . Robots Corrupted . | . . . . . Combat Hostiles . | . . . . . Parts Fried 2 | . 2 . . . Impact Corruptions . | . . . . . Robots Melted . | . . . . . Combat Hostiles . | . . . . . Parts Melted . | . . . . . Heat Transferred 324 | . 50 . . 274 Parts Sabotaged . | . . . . . Parts Stolen . | . . . . . Parts Stripped . | . . . . . Power Chain Reactions 1 | . 1 . . . Alert | -11 -10 -10 -9 -9 ------- Run | Yrd Mat Min Mat Min Peak Influence 334 | . 334 82 196 76 Initial 76 | . . 52 27 76 Average 115 | . 166 58 123 48 Maximum Alert Level 1 | . 1 . . . Low Security (%) 82 | 100 59 100 100 100 Level 1 17 | . 40 . . . Level 2 . | . . . . . Level 3 . | . . . . . Level 4 . | . . . . . Level 5 . | . . . . . High Security . | . . . . . Max Security . | . . . . . Squads Dispatched 2 | . 2 . . . Investigation 2 | . 2 . . . Extermination . | . . . . . Reinforcement . | . . . . . Assault . | . . . . . Garrison . | . . . . . Intercept . | . . . . . Searches Triggered . | . . . . . Construction Impeded . | . . . . . Haulers Reinforced . | . . . . . Active Scanning Responses . | . . . . . Cargo Convoy Interrupts . | . . . . . Stealth | -11 -10 -10 -9 -9 --------- Run | Yrd Mat Min Mat Min Distress Signals 7 | . 4 . 3 . Communications Jammed . | . . . . . Distress Signals . | . . . . . Times Spotted 33 | . 14 2 8 9 Peak Tracking Total 7 | . 3 2 5 7 Tactical Retreats 5 | . 3 . 1 1 Traps | -11 -10 -10 -9 -9 ------- Run | Yrd Mat Min Mat Min Traps Triggered . | . . . . . Indirectly . | . . . . . Trap Hack Attempts . | . . . . . Triggered . | . . . . . Disarmed . | . . . . . Reprogrammed 6 | . 6 . . . Reused 1 | . 1 . . . Traps Extracted . | . . . . . Installed . | . . . . . Triggered 1 | . 1 . . . Machines | -11 -10 -10 -9 -9 ---------- Run | Yrd Mat Min Mat Min Machines Disabled 4 | . 4 . . . Max in Single Turn 1 | . 1 . . . Machines Repaired . | . . . . . Machines Dismantled . | . . . . . Machines Sabotaged . | . . . . . Overloaded Fab Kills . | . . . . . Hacking | -11 -10 -10 -9 -9 --------- Run | Yrd Mat Min Mat Min Machines Accessed 6 | . 3 . 3 . Terminals 6 | . 3 . 3 . Fabricators . | . . . . . Repair Stations . | . . . . . Recycling Units . | . . . . . Scanalyzers . | . . . . . Garrison Access . | . . . . . Total Hacks 18 | . 8 . 10 . Successful 10 | . 5 . 5 . Failed 8 | . 3 . 5 . Catastrophic 2 | . 1 . 1 . Database Lockouts . | . . . . . Manual . | . . . . . Terminals 18 | . 8 . 10 . Fabricators . | . . . . . Repair Stations . | . . . . . Recycling Units . | . . . . . Scanalyzers . | . . . . . Garrison Access . | . . . . . Terminal Hacks 10 | . 5 . 5 . Record 1 | . 1 . . . Alert Level 2 | . . . 2 . Locate Traps 1 | . . . 1 . Reprogram Traps 1 | . 1 . . . Dispatch Records 1 | . 1 . . . Maintenance Status 1 | . 1 . . . Reinforcement Status 1 | . 1 . . . Registered Components 1 | . . . 1 . Zone Layout 1 | . . . 1 . Fabricator Hacks . | . . . . . Repair Station Hacks . | . . . . . Recycling Unit Hacks . | . . . . . Scanalyzer . | . . . . . Garrison Access Hacks . | . . . . . Unauthorized Hacks . | . . . . . Terminals . | . . . . . Fabricators . | . . . . . Repair Stations . | . . . . . Recycling Units . | . . . . . Scanalyzers . | . . . . . Garrison Access . | . . . . . Data Cores Recovered . | . . . . . Used . | . . . . . Hacking Detections 5 | . 2 . 3 . Full Trace Events 1 | . 1 . . . Feedback Events . | . . . . . Feedback Blocked . | . . . . . Robot Schematics Acquired . | . . . . . Robots Built . | . . . . . Authchips . | . . . . . Time . | . . . . . Total Robot Build Rating . | . . . . . Part Schematics Acquired . | . . . . . Parts Built . | . . . . . Authchips . | . . . . . Time . | . . . . . Total Part Build Rating . | . . . . . Parts Repaired . | . . . . . Time . | . . . . . Parts Recycled . | . . . . . Recycled Matter . | . . . . . Retrieved Matter . | . . . . . Retrieved Components . | . . . . . Parts Scanalyzed . | . . . . . Part Schematics Acquired . | . . . . . Parts Damaged . | . . . . . Bothacking | -11 -10 -10 -9 -9 ------------ Run | Yrd Mat Min Mat Min Used RIF Installer . | . . . . . Robots Hacked . | . . . . . Non-combat . | . . . . . Combat . | . . . . . Robot Hacks Applied . | . . . . . Relay Couplers Released . | . . . . . Fabnet Peak Effective % . | . . . . . Robots Rewired . | . . . . . Allies Hacked . | . . . . . Hacks Repelled . | . . . . . Allies | -11 -10 -10 -9 -9 -------- Run | Yrd Mat Min Mat Min Total Allies 3 | . . 2 . 1 Largest Group 2 | . . . 2 1 Highest-Rated Group 42 | . . . 42 31 Highest-Rated Ally 31 | . . . 31 31 Total Orders . | . . . . . Ally Attacks 23 | . . . 19 4 Total Damage 338 | . . . 296 42 Kills 7 | . . . 5 2 Allies Corrupted . | . . . . . Allies Melted . | . . . . . Intel | -11 -10 -10 -9 -9 ------- Run | Yrd Mat Min Mat Min Robot Analysis Total . | . . . . . Derelict Logs Recovered . | . . . . . Drone Launches . | . . . . . Drone Recoveries . | . . . . . Exploration | -11 -10 -10 -9 -9 ------------- Run | Yrd Mat Min Mat Min Turns Passed 969 | 54 414 100 242 159 Spaces Moved 766 | 49 317 59 215 126 Core 25 | 19 . . . 6 Treads . | . . . . . Legs . | . . . . . Wheels 741 | 30 317 59 215 120 Hover . | . . . . . Flight . | . . . . . Fastest Speed 50 | 50 80 80 80 80 Average Speed 84 | 74 87 80 80 91 Slowest Speed 350 | 90 95 80 80 350 Overloaded Moves . | . . . . . Propulsion Burnouts . | . . . . . Robots Hopped . | . . . . . Cave-ins Triggered . | . . . . . Exploration Rate (%) 21 | 3 32 15 27 28 Regions Visited 4 Branch Regions 2 Pre-discovered Areas . | . . . . . Known Exits Taken . | . . . . . Unknown Exits Taken 4 | 1 1 1 1 . Scrap Searched 1 | . . . . 1 Spaces Dug . | . . . . . Terrain Destroyed 10 | . . . . 10 Melee . | . . . . . Projectile . | . . . . . AOE 10 | . . . . 10 Terrain Rammed . | . . . . . Walls Destroyed . | . . . . . Machines Disabled . | . . . . . Actions | -11 -10 -10 -9 -9 --------- Run | Yrd Mat Min Mat Min Total 970 | 66 389 96 264 155 Wait 63 | . 12 23 20 8 Move 762 | 48 316 58 214 126 Hop . | . . . . . Pick Up 34 | 12 9 . 9 4 Fast Attach . | . . . . . Attach 21 | 6 5 . 4 6 Detach . | . . . . . Swap 9 | . 1 . 6 2 Drop 10 | . 6 . 2 2 Fire 70 | . 40 15 9 6 Melee . | . . . . . Ram 1 | . . . . 1 Kick . | . . . . . Crush . | . . . . . Escape Stasis . | . . . . . Rewire . | . . . . . Trap . | . . . . . Miscellaneous . | . . . . . Route ------- -11/Scrapyard -10/Materials -10/Mines -9/Materials -9/Mines History --------- Turn | Location | Event 5 | -11/Scrapyard | Discovered new exit (range 16) 55 | -11/Scrapyard | Entered Materials 304 | -10/Materials | Build established: Mutant 327 | -10/Materials | Lost 3 parts (1p1n1w) 386 | -10/Materials | Discovered new exit (range 12) 469 | -10/Materials | Entered Mines 528 | -10/Mines | Core integrity fell below 50% 560 | -10/Mines | Discovered new exit (range 8) 569 | -10/Mines | Entered Materials 569 | -9/Materials | Accompanied by 2 allies 569 | -9/Materials | Evolved 2 slots: Power x1, Propulsion x1 574 | -9/Materials | Led the pair of lost Derelicts to an unsafe place 776 | -9/Materials | Discovered new exit (range 15) 811 | -9/Materials | Entered Mines 818 | -9/Mines | Received a Rocket Launcher from a helpful Derelict 828 | -9/Mines | Received a Mining Laser from a helpful Derelict 856 | -9/Mines | Assembled infested the area 861 | -9/Mines | Assisted by a Guerilla fighting off Assembled 936 | -9/Mines | Core integrity fell below 50% 969 | -9/Mines | Core integrity fell below 20% 970 | -9/Mines | Destroyed by as-34774 with Assembled Blade Last Messages --------------- 00929_ Slammed into as-21296. Ramming works as a last resort when unarmed or blocked, but can have serious negative consequences. 00929_ Wheel destroyed. 00930_ Acquired 10 matter. 00932_ Assault Rifle destroyed. 00932_ System corrupted by crushing effect (+1). 00946_ Imp. Ion Engine destroyed. 00946_ System corrupted by crushing effect (+2). 00950_ Dropped Lgt. Ion Engine. 00950_ Acquired Ion Engine. 00955_ Ion Engine destroyed. 00955_ as-00848 destroyed. 00956_ as-21296 destroyed. 00960_ Hvy. Assault Rifle destroyed. 00960_ Imp. Ion Engine destroyed. 00960_ as-64305 destroyed. 00968_ Destroyed Asb. Hover Unit. 00970_ Mining Laser destroyed. Map ----- +----------------------------------------------------+ | ??????????????????????????# #??????? | | ??????????????????????????# ##?????? | | ??????????????????????????## ####??? | | ??????????????????????????## """ ##?? | | ????????????????????????### """ ## #?? | | ??????????????????????### """ #### #### ##?? | | ??????????????????????# #??####??# #??? | | ??????????????????????# #????????# #??? | | ??????????????????????## #####????????# #??? | | ???????????????????????##### #????????????# #??? | | ???????????????????????????# ###??????????# #??? | | ?????????###???????????????# ##?????????# #??? | | ????????## ##??####???##### ########### #??? | | ????????# #### ##?## ## =%% #??? | | ????????# ## ### # !* | | ????????# ###################### | | ????????# ##????????????????????? | | ????????## ##?????????????????????? | | ?????????## ## ####??????????????????????? | | ??????????## #### ##?????????????????????????? | | ???????????# ######## #??????????????????????????? | | ???????????# % #??####????????????????????? | | ???????????########## #### ##???????????????????? | | ????????????????????# a #???????????????????? | | ????????????????????##### a #???????????????????? | | ???????????????????????# @a ##???????????????????? | | ???????????????????????# #????????????????????? | | ???????????????????????## ##????????????????????? | | ????????????????????????####?????????????????????? | | ?????????????????????????????????????????????????? | | | | | | | | | | | | | | | | | | | | | | | | | | | | | | | | | | | | | | | | | +----------------------------------------------------+ Best States ------------- Heat Dissipation 28 Energy Generation 19 Energy Capacity 430 Matter Stores 300 Matter Capacity 300 Sight Range 16 Terrain Scan Density 10 Armor Coverage 150 Evasion (%) 50 Item Schematics ----------------- None Robot Schematics ------------------ None Fabricated ------------ Nothing Alien Tech Used ----------------- None Achievements -------------- None Challenges ------------ None Game ------ Seed FortressCargoCharge Manual? 0 Play Time 00:22:13 Cumulative 4.4 hours Start 2024.04.01 @ 17:34:02 End 2024.04.01 @ 17:57:12 Sessions 1 Manual Loads 0 Difficulty Rogue Special Mode None Game No. 5 Rogue 2 Adventurer 3 Explorer 0 Win Type - Total 0 Types 0/0/0/0/0/0/0/0/0 Lore% 2 Gallery% 9 Achievement% 8 Wizard Run 0 Options --------- Layout 1 ASCII 0 Keyboard 0 Movement Mouse Keybinds 0 Fullscreen 1 Font 48/Terminus++ Map View 50x35 Zoom Use 0% Tactical HUD 1 Map Filters NONE Filters NONE Steam 1 RUN: 7d09cf55-5ac2-488f-ab77-865ccbb58115